Workbook

Sheet 部门收支总表
A1: 2018年部门收支总表
H2: 部门预算公开表1
A3: 部门名称：郴州日报社 | H3: 单位：万元
A4: 收 入 | C4: 支 出
A5: 项 目 | B5: 预算数 | C5: 项 目 | D5: 预算数 | E5: 项 目（按部门经济分类） | F5: 预算数 | G5: 项 目（按政府经济分类） | H5: 预算数
A6: 一、一般公共预算拨款 | B6: 2423.69 | C6: 一、般公共服务支出 | D6: 2276.23 | E6: 一、基本支出 | F6: 607.69 | G6: 一、机关工资福利支出 | H6: 0.00
A7: 经费拨款 | B7: 623.69 | C7: 二、公共安全支出 | D7: 0.00 | E7: 1、工资福利支出 | F7: 564.42 | G7: 二、机关商品和服务支出 | H7: 0.00
A8: 纳入预算管理的非税收入 | B8: 1800.00 | C8: 三、教育支出 | D8: 0.00 | E8: 基本工资 | F8: 199.66 | G8: 三、机关资本性支出（一） | H8: 0.00
A9: 专项收入 | B9: 0.00 | C9: 四、科学技术支出 | D9: 0.00 | E9: 津贴补贴 | F9: 0.25 | G9: 四、机关资本性支出（二） | H9: 0.00
A10: 行政事业性收费收入 | B10: 0.00 | C10: 五、文化旅游体育与传媒支出 | D10: 16.00 | E10: 奖金 | F10: 0.00 | G10: 五、对事业单位经常性补助 | H10: 2423.69
A11: 罚没收入 | B11: 0.00 | C11: 六、社会保障和就业支出 | D11: 66.78 | E11: 绩效工资 | F11: 123.48 | G11: 六、对事业单位资本性补助 | H11: 0.00
A12: 国有资产有偿使用收入 | B12: 1800.00 | C12: 七、卫生健康支出 | D12: 25.87 | E12: 养老保险缴费 | F12: 64.68 | G12: 七、对企业补助 | H12: 0.00
A13: 其他非税收入 | B13: 0.00 | C13: 八、节能环保支出 | D13: 0.00 | E13: 职工基本医疗保险 | F13: 25.87 | G13: 八、对企业资本性支出 | H13: 0.00
A14: 二、政府性基金收入 | B14: 0.00 | C14: 九、城乡社区支出 | D14: 0.00 | E14: 其他社会保障缴费 | F14: 8.72 | G14: 九、对个人和家庭的补助
A15: 三、财政专户管理的非税收入 | B15: 0.00 | C15: 十、农林水支出 | D15: 0.00 | E15: 绩效考核奖励 | F15: 76.00 | G15: 十、对社会保障基金补助 | H15: 0.00
A16: 四、上级补助收入 | B16: 0.00 | C16: 十一、交通运输支出 | D16: 0.00 | E16: 住房公积金 | F16: 38.81 | G16: 十一、债务利息及费用支出 | H16: 0.00
A17: 五、其他收入 | B17: 0.00 | C17: 十二、资源勘探电力信息等支出 | D17: 0.00 | E17: 医疗补助 | F17: 26.95 | G17: 十二、债务还本支出 | H17: 0.00
A18: 六、事业单位经营服务收入 | B18: 0.00 | C18: 十三、商业服务业等支出 | D18: 0.0000 | E18: 2、对个人和家庭的补助 | F18: 0.00 | G18: 十三、转移性支出 | H18: 0.00
C19: 十四、金融支出 | D19: 0.0000 | E19: 离休费 | F19: 0.00 | G19: 十四、预备费及预留 | H19: 0.00
C20: 十五、自然资源海洋气象等支出 | D20: 0.0000 | E20: 退休费 | F20: 0.00 | G20: 十五、其他支出 | H20: 0.00
C21: 十六、住房保障支出 | D21: 38.8100 | E21: 3、一般商品和服务支出 | F21: 43.27
C22: 十八、粮油物资储备支出 | D22: 0.0000 | E22: 公务费 | F22: 0.00
C23: 十九、灾害防治及应急管理支出 | D23: 0.0000 | E23: 基本公用经费 | F23: 5.00
C24: 二十、其他支出 | E24: 交通费 | F24: 16.00
E25: 会议费 | F25: 4.00
E26: 工会经费 | F26: 6.47
E27: 福利费 | F27: 9.70
E28: 离休人员经费 | F28: 2.10
E29: 二、项目支出 | F29: 1816.00
E30: 三、事业单位经营服务支出 | F30: 2423.69
A31: 本年收入合计 | B31: 2423.69 | C31: 本年支出合计 | D31: 2423.69 | E31: 本年支出合计 | G31: 本年支出合计 | H31: 2423.69
A32: 上年结转 | B32: 0.00 | C32: 结转下年 | D32: =F32 -> 0.00 | E32: 结转下年 | G32: 结转下年 | H32: =F32 -> 0.00
A34: 收入合计 | B34: 2423.69 | C34: 支出合计 | D34: 2423.69 | E34: 支出合计 | F34: 2423.69 | G34: 支出合计 | H34: 2423.69

Sheet 部门收入总表
A1: 2018年部门收入总表
N2: 部门预算公开表2
A3: 部门名称：郴州日报社 | N3: 单位：万元
A4: 科目 | E4: 合计 | F4: 一般公共预算拨款 | I4: 政府性基金收入 | J4: 纳入专户管理的非税收入拨款 | K4: 上级补助收入 | L4: 其他收入 | M4: 事业单位经营服务收入 | N4: 上年结转
A5: 科目编码 | D5: 科目名称 | F5: 小计 | G5: 经费拨款 | H5: 纳入一般公共预算管理的非税收入拨款
D6: 合计 | E6: =E7+E11+E14+E18+E21 -> 2,423.69 | F6: =F7+F11+F14+F18+F21 -> 2,423.69 | G6: =G7+G11+G14+G18+G21 -> 623.69 | H6: =H7+H11+H14+H18+H21 -> 1,800.00 | I6: =I7+I11+I14+I18+I21 -> 0.00 | J6: =J7+J10+J14+J18 -> 0.00 | K6: =K7+K10+K14+K18 -> 0.00 | L6: =L7+L10+L14+L18 -> 0.00 | M6: =M7+M10+M14+M18 -> 0.00 | N6: =N7+N10+N14+N18 -> 0.00
A7: 201 | D7: 一般公共服务支出 | E7: =E8 -> 2,276.23 | F7: =F8 -> 2,276.23 | G7: =G8 -> 476.23 | H7: =H8 -> 1,800.00 | I7: =I8 -> 0.00 | J7: =J8 -> 0.00 | K7: 0.00 | L7: 0.00 | M7: 0.00 | N7: 0.00
B8: 33 | D8: 宣传事务 | E8: =SUM(E9:E10) -> 2,276.23 | F8: =SUM(F9:F10) -> 2,276.23 | G8: =SUM(G9:G10) -> 476.23 | H8: =SUM(H9:H10) -> 1,800.00 | I8: =SUM(I9:I10) -> 0.00 | J8: 0.00 | K8: 0.00 | L8: 0.00 | M8: 0.00 | N8: 0.00
A9: 201 | B9: 33 | C9: 03 | D9: 机关服务（宣传事务） | E9: 4.00 | F9: 4.00 | G9: 4.00 | H9: 0.00 | I9: 0.00 | J9: 0.00 | K9: 0.00 | L9: 0.00 | M9: 0.00 | N9: 0.00
A10: 201 | B10: 33 | C10: 50 | D10: 事业运行（宣传事务） | E10: 2,272.23 | F10: 2,272.23 | G10: 472.23 | H10: 1,800.00 | I10: 0.00 | J10: =J11 -> 0.00 | K10: =K11 -> 0.00 | L10: =L11 -> 0.00 | M10: =M11 -> 0.00 | N10: =N11 -> 0.00
A11: 207 | D11: 文化体育与传媒支出 | E11: =E12 -> 16.00 | F11: 16.00 | G11: 16.00 | H11: 0.00 | I11: 0.00 | J11: =SUM(J12:J13) -> 0.00 | K11: =SUM(K12:K13) -> 0.00 | L11: =SUM(L12:L13) -> 0.00 | M11: =SUM(M12:M13) -> 0.00 | N11: =SUM(N12:N13) -> 0.00
B12: 04 | D12: 广播影视 | E12: 16.00 | F12: 16.00 | G12: 16.00 | H12: 0.00 | I12: 0.00 | J12: 0.00 | K12: 0.00 | L12: 0.00 | M12: 0.00 | N12: 0.00
A13: 207 | B13: 04 | C13: 07 | D13: 新闻通讯 | E13: 16.00 | F13: 16.00 | G13: 16.00 | H13: 0.00 | I13: 0.00 | J13: 0.00 | K13: 0.00 | L13: 0.00 | M13: 0.00 | N13: 0.00
A14: 208 | D14: 社会保障和就业支出 | E14: =E15 -> 66.78 | F14: 66.78 | G14: 66.78 | H14: 0.00 | I14: 0.00 | J14: 0.00 | K14: 0.00 | L14: 0.00 | M14: 0.00 | N14: 0.00
B15: 05 | D15: 行政事业单位离退休 | E15: =SUM(E16:E17) -> 66.78 | F15: 66.78 | G15: 66.78 | H15: 0.00 | I15: 0.00 | J15: 0.00 | K15: 0.00 | L15: 0.00 | M15: 0.00 | N15: 0.00
A16: 208 | B16: 05 | C16: 02 | D16: 事业单位离退休 | E16: 2.10 | F16: 2.10 | G16: 2.10 | H16: 0.00 | I16: 0.00 | J16: 0.00 | K16: 0.00 | L16: 0.00 | M16: 0.00 | N16: 0.00
A17: 208 | B17: 05 | C17: 05 | D17: 机关事业单位基本养老保险缴费支出 | E17: 64.68 | F17: 64.68 | G17: 64.68 | H17: 0.00 | I17: 0.00 | J17: 0.00 | K17: 0.00 | L17: 0.00 | M17: 0.00 | N17: 0.00
A18: 210 | D18: 医疗卫生与计划生育支出 | E18: =E19 -> 25.87 | F18: 25.87 | G18: 25.87 | H18: 0.00 | I18: 0.00 | J18: =J19 -> 0.00 | K18: 0.00 | L18: 0.00 | M18: 0.00 | N18: 0.00
B19: 11 | D19: 行政事业单位医疗 | E19: 25.87 | F19: 25.87 | G19: 25.87 | H19: 0.00 | I19: 0.00 | J19: 0.00 | K19: 0.00 | L19: 0.00 | M19: 0.00 | N19: 0.00
A20: 210 | B20: 11 | C20: 02 | D20: 事业单位医疗 | E20: 25.87 | F20: 25.87 | G20: 25.87 | H20: 0.00 | I20: 0.00 | J20: 0.00 | K20: 0.00 | L20: 0.00 | M20: 0.00 | N20: 0.00
A21: 221 | D21: 住房保障支出 | E21: =E22 -> 38.81 | F21: 38.81 | G21: 38.81 | H21: 0.00 | I21: 0.00
B22: 02 | D22: 住房改革支出 | E22: 38.81 | F22: 38.81 | G22: 38.81 | H22: 0.00 | I22: 0.00
A23: 221 | B23: 02 | C23: 01 | D23: 住房公积金 | E23: 38.81 | F23: 38.81 | G23: 38.81 | H23: 0.00 | I23: 0.00

Sheet 部门支出总表
A1: 2018年部门支出总表
I2: 部门预算公开表3
A3: 部门名称：郴州日报社 | I3: 单位：万元
A4: 支出功能分类科目 | C4: 政府支出经济分类科目 | E4: 部门支出经济分类科目 | G4: 合计 | H4: 基本支出 | I4: 项目支出
A5: 科目编码 | B5: 科目名称 | C5: 科目编码 | D5: 科目名称 | E5: 科目编码 | F5: 科目名称
B6: 合计 | G6: 2,423.69 | H6: 607.69 | I6: 1816.00
A7: 2013350 | B7: 事业运行（宣传事务） | C7: 50501 | D7: 工资福利支出 | E7: 30101 | F7: 基本工资 | G7: 209.86 | H7: 209.86
A8: 2013350 | B8: 事业运行（宣传事务） | C8: 50501 | D8: 工资福利支出 | E8: 30102 | F8: 津贴补贴 | G8: 11.55 | H8: 11.55
A9: 2013350 | B9: 事业运行（宣传事务） | C9: 50501 | D9: 工资福利支出 | E9: 30103 | F9: 奖金 | G9: 78.00 | H9: 78.00
A10: 2080505 | B10: 事业运行（宣传事务） | C10: 50501 | D10: 工资福利支出 | E10: 30107 | F10: 绩效工资 | G10: 123.48 | H10: 123.48
A11: 2080505 | B11: 机关事业单位基本养老保险缴费支出 | C11: 50501 | D11: 工资福利支出 | E11: 30108 | F11: 机关事业单位基本养老保险缴费 | G11: 64.68 | H11: 64.68
A12: 2101102 | B12: 事业单位医疗 | C12: 50501 | D12: 工资福利支出 | E12: 30110 | F12: 职工基本医疗保险缴费 | G12: 25.87 | H12: 25.87
A13: 2013350 | B13: 事业运行（宣传事务） | C13: 50501 | D13: 工资福利支出 | E13: 30112 | F13: 其他社会保障缴费 | G13: 8.72 | H13: 8.72
A14: 2210201 | B14: 住房公积金 | C14: 50501 | D14: 工资福利支出 | E14: 30113 | F14: 住房公积金 | G14: 38.81 | H14: 38.81
A15: 2101199 | B15: 其他行政事业单位医疗支出 | C15: 50501 | D15: 工资福利支出 | E15: 30114 | F15: 医疗费 | G15: 1.05 | H15: 1.05
A16: 2013350 | B16: 事业运行（宣传事务） | C16: 50501 | D16: 工资福利支出 | E16: 30199 | F16: 其他工资福利支出 | G16: 2.40 | H16: 2.40
A17: 2013350 | B17: 事业运行（宣传事务） | C17: 50502 | D17: 商品和服务支出 | E17: 30201 | F17: 办公费 | G17: 5.00 | H17: 5.00
A18: 2013350 | B18: 事业运行（宣传事务） | C18: 50502 | D18: 商品和服务支出 | E18: 30215 | F18: 会议费 | G18: 4.00 | H18: 4.00
A19: 2013350 | B19: 事业运行（宣传事务） | C19: 50502 | D19: 商品和服务支出 | E19: 30228 | F19: 工会经费 | G19: 6.47 | H19: 6.47
A20: 2013350 | B20: 事业运行（宣传事务） | C20: 50502 | D20: 商品和服务支出 | E20: 30229 | F20: 福利费 | G20: 9.70 | H20: 9.70
A21: 2013350 | B21: 事业运行（宣传事务） | C21: 50502 | D21: 商品和服务支出 | E21: 30231 | F21: 公务用车运行维护费 | G21: 16.00 | H21: 16.00
A22: 2013350 | B22: 事业运行（宣传事务） | C22: 50502 | D22: 商品和服务支出 | E22: 30299 | F22: 其他商品和服务支出 | G22: 2.10 | H22: 2.10 | I22: 1816

Sheet 财政拨款收支总表
A1: 2018年财政拨款收支总表
D2: 部门预算公开表4
A3: 部门名称：郴州日报社 | D3: 单位：万元
A4: 收 入 | C4: 支 出
A5: 项目 | B5: 预算数 | C5: 项目 | D5: 预算数
A6: 一、一般公共预算拨款 | B6: 2,423.69 | C6: 一、本年支出
A7: 经费拨款 | B7: 623.69 | C7: (一)一般公共服务支出 | D7: 2,276.23
A8: 纳入一般公共预算管理的非税收入拨款 | B8: 1,800.00 | C8: (二)公共安全支出 | D8: 0.00
A9: 二、政府性基金收入 | C9: (三)教育支出 | D9: 0.00
C10: (四)科学技术支出 | D10: 0.00
C11: (五)文化旅游体育与传媒支出 | D11: 16.00
C12: (六)社会保障和就业支出 | D12: 66.78
C13: (七)卫生健康支出 | D13: 25.87
C14: (八)节能环保支出 | D14: 0.00
C15: (九)城乡社区支出
C16: (十)农林水支出
C17: (十一)交通运输支出
C18: (十二)资源勘探电力信息等支出
C19: (十三)商业服务业等支出
C20: (十四)金融支出
C21: (十五)自然资源海洋气象等支出
C22: (十六)住房保障支出 | D22: 38.81
C23: (十七)粮油物资储备支出 | D23: 0.00
C24: (十八)其他支出 | D24: 0.00
C25: (十九)灾害防治及应急管理支出
A26: 收 入 总计 | B26: 2,423.69 | C26: 支 出 总 计 | D26: 2,423.69

Sheet 一般公共预算支出表
A1: 2018年一般公共预算支出表
G2: 部门预算公开表5
A3: 部门名称：郴州日报社 | G3: 单位：万元
A4: 科目编码 | D4: 科目名称 | E4: 2018年预算数
E5: 小计 | F5: 基本支出 | G5: 项目支出
D6: 合计 | E6: =E7+E11+E14+E18+E21 -> 2423.69 | F6: =F7+F11+F14+F18+F21 -> 607.69 | G6: =G7+G11+G14+G18+G21 -> 1816.00
A7: 201 | D7: 一般公共服务支出 | E7: =E8 -> 2276.23 | F7: =F8 -> 476.23 | G7: =G8 -> 1800.00
B8: 33 | D8: 宣传事务 | E8: =SUM(E9:E10) -> 2276.23 | F8: =SUM(F9:F10) -> 476.23 | G8: =SUM(G9:G10) -> 1800.00
A9: 201 | B9: 33 | C9: 03 | D9: 机关服务（宣传事务） | E9: 4.00 | F9: 4.00 | G9: 0.00
A10: 201 | B10: 33 | C10: 50 | D10: 事业运行（宣传事务） | E10: 2272.23 | F10: 472.23 | G10: 1800.00
A11: 207 | D11: 文化体育与传媒支出 | E11: =E12 -> 16.00 | F11: 0.00 | G11: 16.00
B12: 04 | D12: 广播影视 | E12: 16.00 | F12: 0.00 | G12: 16.00
A13: 207 | B13: 04 | C13: 07 | D13: 新闻通讯 | E13: 16.00 | F13: 0.00 | G13: 16.00
A14: 208 | D14: 社会保障和就业支出 | E14: =E15 -> 66.78 | F14: =F15 -> 66.78 | G14: =G15 -> 0.00
B15: 05 | D15: 行政事业单位离退休 | E15: =SUM(E16:E17) -> 66.78 | F15: =SUM(F16:F17) -> 66.78 | G15: =SUM(G16:G17) -> 0.00
A16: 208 | B16: 05 | C16: 02 | D16: 事业单位离退休 | E16: 2.10 | F16: 2.10 | G16: 0.00
A17: 208 | B17: 05 | C17: 05 | D17: 机关事业单位基本养老保险缴费支出 | E17: 64.68 | F17: 64.68 | G17: 0.00
A18: 210 | D18: 医疗卫生与计划生育支出 | E18: =E19 -> 25.87 | F18: 25.87 | G18: 0.00
B19: 11 | D19: 行政事业单位医疗 | E19: 25.87 | F19: 25.87 | G19: 0.00
A20: 210 | B20: 11 | C20: 02 | D20: 事业单位医疗 | E20: 25.87 | F20: 25.87 | G20: 0.00
A21: 221 | D21: 住房保障支出 | E21: =E22 -> 38.81 | F21: 38.81 | G21: 0.00
B22: 02 | D22: 住房改革支出 | E22: 38.81 | F22: 38.81 | G22: 0.00
A23: 221 | B23: 02 | C23: 01 | D23: 住房公积金 | E23: 38.81 | F23: 38.81 | G23: 0.00

Sheet 一般公共预算基本支出表
A1: 2018年一般公共预算基本支出表
G2: 部门预算公开表6
A3: 部门名称：郴州日报社 | G3: 单位：万元
A4: 部门经济分类科目 | C4: 政府经济分类科目 | E4: 基本支出
A5: 科目编码 | B5: 科目名称 | C5: 科目编码 | D5: 科目名称 | E5: 合计 | F5: 人员经费 | G5: 公用经费
B6: 合计 | E6: =E7+E18 -> 607.69 | F6: =F7+F18 -> 564.42 | G6: =G7+G18 -> 43.27
A7: 301 | B7: 工资福利支出 | C7: 505 | D7: 对事业单位经常性补助 | E7: =SUM(E8:E17) -> 564.42 | F7: =SUM(F8:F17) -> 564.42 | G7: =SUM(G8:G17) -> 0.00
A8: 30101 | B8: 基本工资 | C8: 50501 | D8: 工资福利支出 | E8: 209.86 | F8: 209.86 | G8: 0.00
A9: 30102 | B9: 津贴补贴 | C9: 50501 | D9: 工资福利支出 | E9: 11.55 | F9: 11.55 | G9: 0.00
A10: 30103 | B10: 奖金 | C10: 50501 | D10: 工资福利支出 | E10: 78.00 | F10: 78.00 | G10: 0.00
A11: 30107 | B11: 绩效工资 | C11: 50501 | D11: 工资福利支出 | E11: 123.48 | F11: 123.48 | G11: 0.00
A12: 30108 | B12: 机关事业单位基本养老保险缴费 | C12: 50501 | D12: 工资福利支出 | E12: 64.68 | F12: 64.68 | G12: 0.00
A13: 30110 | B13: 职工基本医疗保险缴费 | C13: 50501 | D13: 工资福利支出 | E13: 25.87 | F13: 25.87 | G13: 0.00
A14: 30112 | B14: 其他社会保障缴费 | C14: 50501 | D14: 工资福利支出 | E14: 8.72 | F14: 8.72 | G14: 0.00
A15: 30113 | B15: 住房公积金 | C15: 50501 | D15: 工资福利支出 | E15: 38.81 | F15: 38.81 | G15: 0.00
A16: 30114 | B16: 医疗费 | C16: 50501 | D16: 工资福利支出 | E16: 1.05 | F16: 1.05 | G16: 0.00
A17: 30199 | B17: 其他工资福利支出 | C17: 50501 | D17: 工资福利支出 | E17: 2.40 | F17: 2.40 | G17: 0.00
A18: 302 | B18: 商品和服务支出 | C18: 505 | D18: 对事业单位经常性补助 | E18: =SUM(E19:E24) -> 43.27 | F18: =SUM(F19:F24) -> 0.00 | G18: =SUM(G19:G24) -> 43.27
A19: 30201 | B19: 办公费 | C19: 50502 | D19: 商品和服务支出 | E19: 5.00 | F19: 0.00 | G19: 5.00
A20: 30215 | B20: 会议费 | C20: 50502 | D20: 商品和服务支出 | E20: 4.00 | F20: 0.00 | G20: 4.00
A21: 30228 | B21: 工会经费 | C21: 50502 | D21: 商品和服务支出 | E21: 6.47 | F21: 0.00 | G21: 6.47
A22: 30229 | B22: 福利费 | C22: 50502 | D22: 商品和服务支出 | E22: 9.70 | F22: 0.00 | G22: 9.70
A23: 30231 | B23: 公务用车运行维护费 | C23: 50502 | D23: 商品和服务支出 | E23: 16.00 | F23: 0.00 | G23: 16.00
A24: 30299 | B24: 其他商品和服务支出 | C24: 50502 | D24: 商品和服务支出 | E24: 2.10 | F24: 0.00 | G24: 2.10

Sheet 一般公共预算"三公"经费支出表
A1: 2018年“三公”经费预算数（财政拨款）
F2: 部门预算公开表7
A3: 部门名称：郴州日报社 | F3: 单位：万元
A4: 2018年预算数
A5: 合计 | B5: 因公出国（境）费 | C5: 公务用车购置及运行费 | F5: 公务接待费
C6: 小计 | D6: 公务用车购置费 | E6: 公务用车运行费
A7: 40.00 | B7: 0.00 | C7: 16.00 | D7: 0.00 | E7: 16.00 | F7: 24.00

Sheet 政府性基金预算支出表
A1: 2018年政府性基金预算支出表
E2: 部门预算公开表8
A3: 部门名称：郴州日报社 | E3: 单位：万元
A4: 科目编码 | B4: 科目名称 | C4: 本年政府性基金预算财政拨款支出
C5: 合计 | D5: 基本支出 | E5: 项目支出

Sheet 政府采购预算表
A1: 2018年政府采购预算表
O2: 部门预算公开表9
A3: 部门名称：郴州日报社 | P3: 单位：万元
A4: 项目名称 | B4: 采购目录 | C4: 采购数量 | D4: 是否面向中小企业采购 | E4: 预计采 购时间 | F4: 资 金 来 源
F5: 合计 | G5: 一般预算拨款(补助) | J5: 财政专户管理的非税收入拨款 | K5: 上级 补助 收入 | L5: 事业单位经营性收入 | M5: 上级补助 收入 | N5: 附属单位上缴收入 | O5: 上年结转 | P5: 其他资金
G6: 小计 | H6: 经费 拨款 | I6: 纳入预算管理的非税收入拨款
E7: 合计 | F7: =SUM(F8:F19) -> 1,238.50 | G7: 0.00 | H7: 0.00 | I7: 0.00 | J7: 1,238.50 | N7: =SUM(N8:N19) -> 0.00 | O7: 0.00 | P7: 0.00 | Q7: 0.00
A8: 数字化平台网络设备 | B8: 货物 | C8: 1 | D8: 否 | E8: 2018年 | F8: 200.00 | G8: 0.00 | H8: 0.00 | I8: 0.00 | J8: 200.00 | N8: 0.00 | O8: 0.00 | P8: 0.00 | Q8: 0.00
A9: 新闻纸 | B9: 货物 | C9: 1 | D9: 是 | E9: 2018年 | F9: 630.00 | G9: 0.00 | H9: 0.00 | I9: 0.00 | J9: 630.00 | N9: 0.00 | O9: 0.00 | P9: 0.00 | Q9: 0.00
A10: 办公桌椅 | B10: 货物 | C10: 20 | D10: 是 | E10: 2018年 | F10: 3.00 | G10: 0.00 | H10: 0.00 | I10: 0.00 | J10: 3.00 | N10: 0.00 | O10: 0.00 | P10: 0.00 | Q10: 0.00
A11: 办公电脑 | B11: 货物 | C11: 30 | D11: 是 | E11: 2018年 | F11: 10.50 | G11: 0.00 | H11: 0.00 | I11: 0.00 | J11: 10.50 | N11: 0.00 | O11: 0.00 | P11: 0.00 | Q11: 0.00
A12: 照相设备 | B12: 货物 | C12: 5 | D12: 否 | E12: 2018年 | F12: 20.00 | G12: 0.00 | H12: 0.00 | I12: 0.00 | J12: 20.00 | N12: 0.00 | O12: 0.00 | P12: 0.00 | Q12: 0.00
A13: 印刷用原材料 | B13: 货物 | C13: 1 | D13: 否 | E13: 2018年 | F13: 57.00 | G13: 0.00 | H13: 0.00 | I13: 0.00 | J13: 57.00 | N13: 0.00 | O13: 0.00 | P13: 0.00 | Q13: 0.00
A14: 油墨 | B14: 货物 | C14: 1 | D14: 是 | E14: 2018年 | F14: 54.00 | G14: 0.00 | H14: 0.00 | I14: 0.00 | J14: 54.00 | N14: 0.00 | O14: 0.00 | P14: 0.00 | Q14: 0.00
A15: 空调 | B15: 货物 | C15: 20 | D15: 否 | E15: 2018年 | F15: 4.00 | G15: 0.00 | H15: 0.00 | I15: 0.00 | J15: 4.00 | N15: 0.00 | O15: 0.00 | P15: 0.00 | Q15: 0.00
A16: 印刷配件 | B16: 货物 | C16: 1 | D16: 否 | E16: 2018年 | F16: 38.00 | G16: 0.00 | H16: 0.00 | I16: 0.00 | J16: 38.00 | N16: 0.00 | O16: 0.00 | P16: 0.00 | Q16: 0.00
A17: 采编平台软件系统 | B17: 货物 | C17: 1 | D17: 是 | E17: 2018年 | F17: 200.00 | G17: 0.00 | H17: 0.00 | I17: 0.00 | J17: 200.00 | N17: 0.00 | O17: 0.00 | P17: 0.00 | Q17: 0.00
A18: 办公用品 | B18: 货物 | C18: 1 | D18: 是 | E18: 2018年 | F18: 20.00 | G18: 0.00 | H18: 0.00 | I18: 0.00 | J18: 20.00 | N18: 0.00 | O18: 0.00 | P18: 0.00 | Q18: 0.00
A19: 复印打印设备 | B19: 货物 | C19: 10 | D19: 是 | E19: 2018年 | F19: 2.00 | G19: 0.00 | H19: 0.00 | I19: 0.00 | J19: 2.00 | N19: 0.00 | O19: 0.00 | P19: 0.00 | Q19: 0.00

Sheet 政府购买服务预算编制表
A1: 2018年政府购买服务预算表
O2: 部门预算公开表10
A3: 部门名称：郴州日报社 | P3: 单位：万元
A4: 单位名称 | B4: 购买服务项目 | E4: 购买服务金额 | N4: 承接主体类别 | O4: 直接受益对象 | P4: 预期绩效目标
B5: 政府购买服务目录代码 | C5: 政府购买服务目录名称 | D5: 具体项目名称 | E5: 合计 | F5: 一般公共预算拨款 | I5: 政府性基金 | J5: 纳入财政专户管理的非税收入拨款 | K5: 上级补助收入 | L5: 上年结转 | M5: 其他资金
F6: 小计 | G6: 财政拨款 | H6: 纳入预算管理的非税收入拨款
D7: 合计 | E7: 60 | F7: =SUM(F8:F10) -> 0.00 | G7: 0.00 | H7: 0.00 | I7: 0.00 | J7: 60.00 | K7: 0.00
A8: 郴州日报社 | B8: 99CC32586C44470797F21FC84064B0ED | C8: 其他政府购买服务事项 | D8: 安全运维服务 | E8: 20.00 | J8: 20.00 | O8: 郴州日报社
A9: 郴州日报社 | B9: 99CC32586C44470797F21FC84064B0ED | C9: 其他政府购买服务事项 | D9: 硬件运维服务 | E9: 20.00 | J9: 20.00 | O9: 郴州日报社
A10: 郴州日报社 | B10: 99CC32586C44470797F21FC84064B0ED | C10: 其他政府购买服务事项 | D10: 软件运维服务费用 | E10: 20.00 | J10: 20.00 | O10: 郴州日报社
